Cogmind - Beta 16 @@@ ROGUE MODE // 2025.11.07 @ 15:35:32 Player: Doobadoop Result: Destroyed by G-50 Soldier with Heavy Laser Performance ------------- Evolutions (2) 1000 Regions Visited (4) 800 Robots Destroyed (39) 195 Value Destroyed (1046) 1046 Prototype IDs (0) 0 Alien Tech Used (0) 0 Bonus (200) 200 TOTAL SCORE: 3241 Bonus ------- Entered Garrisons 200 Cogmind --------- Core Integrity 0/550 Matter 282/300 Energy 298/300 System Corruption 0% Temperature Cool (18) Movement Flying (120) Ox1 Location -8/Garrison Parts ------- > --- POWER (2) -------- (None) > --- PROPULSION (3) --- Flight Unit > --- UTILITY (4) ------ Compact Battery Launcher Guidance Computer > --- WEAPON (2) ------- High-powered Shotgun Axe > --- INVENTORY (5) ---- Combat Airjet Peak State ------------ > --- POWER ------------ Ion Engine Reinforced Ion Engine > --- PROPULSION ------- Improved Hover Unit Improved Hover Unit Improved Hover Unit > --- UTILITY ---------- Machine Analyzer Actuator Array Reaction Control System High-powered Tractor Beam > --- WEAPON ----------- Heavy Assault Rifle Flak Cannon > --- INVENTORY -------- Heat Sink [Rating: 26] Favorites ----------- Power Ion Engine Engine Ion Engine Propulsion Aluminum Leg Leg Aluminum Leg Wheel Wheel Hover Unit Improved Hover Unit Flight Unit Flight Unit Utility Small Storage Unit Device Heat Sink Storage Small Storage Unit Processor Machine Analyzer Protection Hardened Light Armor Plating Weapon Small Laser Energy Gun Small Laser Ballistic Gun Light Assault Rifle Ballistic Cannon Flak Cannon Launcher Grenade Launcher Slashing Weapon Axe Build | -11 -10 -9 -8 -8 ------- Run | Yrd Mat Mat Mat Gar Slots Evolved 4 | . . 2 2 . Power 1 | . . . 1 . Propulsion 1 | . . 1 . . Utility 2 | . . 1 1 . Weapon . | . . . . . Parts Attached 47 | 6 7 10 17 7 Power 5 | 1 1 2 1 . Engine 5 | 1 1 2 1 . Core . | . . . . . Reactor . | . . . . . Propulsion 17 | 2 2 3 6 4 Treads . | . . . . . Leg 5 | . 2 3 . . Wheel 2 | 2 . . . . Hover 3 | . . . 3 . Flight 7 | . . . 3 4 Utility 12 | 1 2 2 5 2 Device 5 | . 1 . 4 . Storage 4 | 1 1 1 . 1 Processor 2 | . . . 1 1 Hackware . | . . . . . Protection 1 | . . 1 . . Artifact . | . . . . . Weapon 13 | 2 2 3 5 1 Energy Gun 5 | . 2 2 1 . Energy Cannon . | . . . . . Ballistic Gun 4 | 2 . . 1 1 Ballistic Cannon 2 | . . . 2 . Launcher 1 | . . 1 . . Special Weapon . | . . . . . Impact Weapon . | . . . . . Slashing Weapon 1 | . . . 1 . Piercing Weapon . | . . . . . Special Melee Weapon . | . . . . . Unidentified Prototypes . | . . . . . Parts Lost 29 | . . 12 10 7 Power 4 | . . 2 1 1 Propulsion 14 | . . 5 3 6 Utility 5 | . . 2 3 . Weapon 6 | . . 3 3 . Highest Loss Streak 11 | . . 11 4 6 To Critical Strikes . | . . . . . Average Backups 3 | 2 6 4 1 3 Power . | . 1 1 . . Propulsion 1 | . 2 . . 2 Utility . | . . . . . Weapon 1 | . 1 1 . . Tool/Special . | . . . . . Unused Backups 2 | . 1 . . 1 Power . | . . . . . Propulsion 2 | . 1 . . 1 Utility . | . . . . . Weapon . | . . . . . Tool/Special . | . . . . . Average Slot Usage (%) 71 | . 93 87 53 43 Engine 11 | . 14 9 11 7 Leg 9 | . 9 29 . . Wheel 5 | . 18 . . . Hover 5 | . . . 12 . Flight 3 | . . . 4 22 Device 8 | . 3 8 13 . Storage 8 | . 18 15 . 1 Processor 1 | . . . 2 3 Protection 1 | . . 5 . . Energy Gun 8 | . 15 18 . . Ballistic Gun 4 | . 12 . 2 . Ballistic Cannon 2 | . . . 5 . Slashing Weapon 1 | . . . . 9 Peak Build Rating 26 | 6 7 10 26 14 Average Rating 9 | 3 6 8 12 9 On Entrance 4 | . 6 7 1 8 Avg Prop Armor Cover (%) . | . . . . . Naked Turns 18 | . . 18 . . Heaviest Build 31 | 12 16 25 31 13 Greatest Support 30 | 20 20 30 21 15 Greatest Overweight (x) 4 | . . 1 4 . Average Overweight (x) . | . . . . . Largest Inventory Capacity 10 | 8 8 10 5 5 Average Capacity 6 | 5 8 8 5 5 Most Carried 8 | 4 8 7 5 4 Average Carried 3 | 2 6 4 1 3 Final Capacity 8 | 8 8 5 5 5 Final Carried 7 | 4 7 . 4 1 Class Distribution -------------------- 64% | Mutant 35% | Scavenger-Mutant Dominant Class ---------------- Mutant | -10/Materials Scavenger-Mutant | -9/Materials Mutant | -8/Materials Mutant | -8/Garrison Resources | -11 -10 -9 -8 -8 ----------- Run | Yrd Mat Mat Mat Gar Matter Collected 1196 | 190 370 40 538 58 Remotely 199 | . . . 199 . Salvage Created 1291 | . 398 339 417 137 Parts 63 | . 16 15 26 6 Haulers Intercepted . | . . . . . Recyclers Shooed 1 | . . . 1 . Parts Field Recycled . | . . . . . Retrieved Matter . | . . . . . Parts Self-Destructed . | . . . . . Prevented . | . . . . . Parts Restored . | . . . . . Kills | -11 -10 -9 -8 -8 ------- Run | Yrd Mat Mat Mat Gar Combat Hostiles Destroyed 35 | . 7 7 19 2 Melee 6 | . . . 4 2 Guns 18 | . 7 5 6 . Cannons 9 | . . . 9 . AOE 2 | . . 2 . . Classes Destroyed 7 | . 2 3 1 1 Recycler 3 | . 1 2 . . Mechanic 1 | . . 1 . . Swarmer 15 | . . 4 11 . Grunt 15 | . 7 2 5 1 Brawler 1 | . . . 1 . Sentry 3 | . . 1 2 . Specialist 1 | . . . . 1 Best Kill Streak 8 | . 3 8 6 2 Combat Bots Only 6 | . 2 5 6 2 Max Kills in Single Turn 1 | . 1 1 1 1 Gunslinging . | . . . . . Exploded 1 | . . 1 . . Melee 1 | . . . 1 1 Uniques/NPCs Destroyed . | . . . . . Combat | -11 -10 -9 -8 -8 -------- Run | Yrd Mat Mat Mat Gar Hostile Shots Fired 349 | . 29 123 117 80 Missed 121 | . 5 43 30 43 Hits 228 | . 24 80 87 37 Melee 11 | . . 11 . . Projectile 217 | . 24 69 87 37 Critical Strikes 6 | . . 4 2 . Damage Taken 3136 | . 307 1218 1120 491 Core 932 | . 65 302 315 250 Absorbed by Shields . | . . . . . Core Remaining (%) 66 | 100 74 24 . . Volleys Fired 126 | . 28 34 62 2 Largest 2 | . 2 2 2 1 Hottest 80 | . 80 80 74 25 Shots Fired 203 | . 56 59 86 2 Gun 145 | . 56 53 34 2 Cannon 52 | . . . 52 . Launcher 6 | . . 6 . . Special . | . . . . . Kinetic 118 | . 32 . 84 2 Thermal 77 | . 24 51 2 . Explosive 6 | . . 6 . . Electromagnetic 2 | . . 2 . . Robot Hit Streak 12 | . 12 11 10 3 Robot Miss Streak 8 | . 2 4 8 1 Penetration Max . | . . . . . Secondary Targets . | . . . . . Shots Hit Robots 160 | . 41 35 70 14 Core Hits 91 | . 20 16 51 4 Critical Kills . | . . . . . Critical Parts Destroyed . | . . . . . Critical Strikes 2 | . . . 1 1 Blast 1 | . . . 1 . Sever 1 | . . . . 1 Melee Attacks 23 | . . . 9 14 Impact . | . . . . . Slashing 23 | . . . 9 14 Piercing . | . . . . . Sneak Attacks 1 | . . . 1 . Combat Hostiles . | . . . . . Follow-up Attacks . | . . . . . Damage Inflicted 2981 | . 403 526 1372 680 Guns 1171 | . 398 354 388 31 Cannons 744 | . . . 744 . Explosions 172 | . . 172 . . Melee 863 | . . . 214 649 Ramming 31 | . 5 . 26 . Kinetic 1304 | . 175 . 1098 31 Thermal 589 | . 223 332 34 . Explosive 172 | . . 172 . . Electromagnetic 22 | . . 22 . . Impact . | . . . . . Slashing 863 | . . . 214 649 Piercing . | . . . . . Highest Corruption . | . . . . . Average Corruption . | . . . . . Corruption Purged . | . . . . . Corruption Blocked . | . . . . . Overload Shots . | . . . . . Overflow Damage 127 | . . . 36 91 Projectiles . | . . . . . Explosions . | . . . . . Melee 127 | . . . 36 91 Knockbacks 32 | . . . 32 . Impact 1 | . . . 1 . Kinetic 27 | . . . 27 . Secondary 4 | . . . 4 . Self-Inflicted Damage 46 | . 2 34 10 . Shots 2 | . . 2 . . Rammed 10 | . 2 . 8 . Targets Rammed 10 | . 2 . 8 . Kicked . | . . . . . Crushed . | . . . . . Highest Temperature 272 | . 12 33 272 2 Average Temperature 62 | . 7 7 108 2 Received Heat Transfer 951 | . 174 219 414 144 Siege Activations . | . . . . . Martial Activations . | . . . . . Shielding Activations . | . . . . . Robots Disrupted . | . . . . . Combat Hostiles . | . . . . . Robots Corrupted . | . . . . . Combat Hostiles . | . . . . . Parts Fried . | . . . . . Impact Corruptions . | . . . . . Robots Melted . | . . . . . Combat Hostiles . | . . . . . Parts Melted 2 | . 2 . . . Heat Transferred 1324 | . 500 750 74 . Parts Sabotaged . | . . . . . Parts Stolen . | . . . . . Parts Stripped . | . . . . . Power Chain Reactions . | . . . . . Alert | -11 -10 -9 -8 -8 ------- Run | Yrd Mat Mat Mat Gar Maximum Alert Level 2 | . . . 1 2 Low Security (%) 87 | 100 100 100 84 22 Level 1 11 | . . . 15 70 Level 2 . | . . . . 7 Level 3 . | . . . . . Level 4 . | . . . . . Level 5 . | . . . . . High Security . | . . . . . Max Security . | . . . . . Peak Influence 407 | . 90 125 281 407 Initial 177 | . . . 1 177 Average 74 | . 37 36 79 318 Influence Increases 1292 | . 190 225 592 285 Destroy 0b10 Robot/C 700 | . 140 140 380 40 Destroy 0b10 Robot/NC 25 | . 5 15 . 5 Destroy Leader 120 | . 30 20 70 . Disable Machine 30 | . . 30 . . Destroy Structure 27 | . . 20 7 . Partial Spotted 30 | . . . 30 . Lose Combat Pursuer 360 | . 15 . 105 240 Influence Decreases 900 | . 190 220 324 166 Entered New Map 100 | . . . 4 96 Time Decay 514 | . 190 100 224 . Lost Part 286 | . . 120 96 70 Squads Dispatched 3 | . 2 1 . . Investigation 1 | . 1 . . . Extermination . | . . . . . Reinforcement 2 | . 1 1 . . Assault . | . . . . . Garrison . | . . . . . Intercept . | . . . . . Searches Triggered . | . . . . . Construction Impeded . | . . . . . Haulers Reinforced . | . . . . . Active Scanning Responses . | . . . . . Cargo Convoy Interrupts . | . . . . . Stealth | -11 -10 -9 -8 -8 --------- Run | Yrd Mat Mat Mat Gar Distress Signals 7 | . . 3 4 . Communications Jammed . | . . . . . Distress Signals . | . . . . . Times Spotted 78 | . 10 14 34 20 Peak Tracking Total 14 | . 3 5 9 14 Tactical Retreats 7 | . 1 . 4 2 Traps | -11 -10 -9 -8 -8 ------- Run | Yrd Mat Mat Mat Gar Traps Triggered 1 | . 1 . . . Indirectly . | . . . . . Trap Hack Attempts . | . . . . . Triggered . | . . . . . Disarmed . | . . . . . Reprogrammed . | . . . . . Reused . | . . . . . Traps Extracted . | . . . . . Installed . | . . . . . Triggered . | . . . . . Machines | -11 -10 -9 -8 -8 ---------- Run | Yrd Mat Mat Mat Gar Machines Disabled 2 | . . 2 . . Max in Single Turn 1 | . . 1 . . Machines Repaired . | . . . . . Machines Dismantled . | . . . . . Machines Sabotaged . | . . . . . Overloaded Fab Kills . | . . . . . Hacking | -11 -10 -9 -8 -8 --------- Run | Yrd Mat Mat Mat Gar Machines Accessed 2 | . . . 2 . Terminals . | . . . . . Fabricators . | . . . . . Repair Stations . | . . . . . Recycling Units . | . . . . . Scanalyzers 1 | . . . 1 . Garrison Access 1 | . . . 1 . Total Hacks 5 | . . . 5 . Successful 4 | . . . 4 . Failed 1 | . . . 1 . Catastrophic . | . . . . . Database Lockouts . | . . . . . Manual . | . . . . . Terminals . | . . . . . Fabricators . | . . . . . Repair Stations . | . . . . . Recycling Units . | . . . . . Scanalyzers 4 | . . . 4 . Garrison Access 1 | . . . 1 . Terminal Hacks . | . . . . . Fabricator Hacks . | . . . . . Repair Station Hacks . | . . . . . Recycling Unit Hacks . | . . . . . Scanalyzer 3 | . . . 3 . Retrieve Study 3 | . . . 3 . Garrison Access Hacks 1 | . . . 1 . Unlock Access 1 | . . . 1 . Unauthorized Hacks . | . . . . . Terminals . | . . . . . Fabricators . | . . . . . Repair Stations . | . . . . . Recycling Units . | . . . . . Scanalyzers . | . . . . . Garrison Access . | . . . . . Data Cores Recovered . | . . . . . Used . | . . . . . Hacking Detections 1 | . . . 1 . Full Trace Events . | . . . . . Feedback Events . | . . . . . Feedback Blocked . | . . . . . Robot Schematics Acquired . | . . . . . Robots Built . | . . . . . Authchips . | . . . . . Time . | . . . . . Total Robot Build Rating . | . . . . . Part Schematics Acquired . | . . . . . Parts Built . | . . . . . Authchips . | . . . . . Time . | . . . . . Total Part Build Rating . | . . . . . Part Studies Acquired 3 | . . . 3 . Parts Repaired . | . . . . . Time . | . . . . . Parts Recycled . | . . . . . Recycled Matter . | . . . . . Retrieved Matter . | . . . . . Retrieved Components . | . . . . . Parts Scanalyzed . | . . . . . Part Schematics Acquired . | . . . . . Parts Damaged . | . . . . . Bothacking | -11 -10 -9 -8 -8 ------------ Run | Yrd Mat Mat Mat Gar Used RIF Installer . | . . . . . Robots Hacked . | . . . . . Non-combat . | . . . . . Combat . | . . . . . Robot Hacks Applied . | . . . . . Relay Couplers Released . | . . . . . Fabnet Peak Effective % . | . . . . . Robots Rewired . | . . . . . Allies Hacked . | . . . . . Hacks Repelled . | . . . . . Allies | -11 -10 -9 -8 -8 -------- Run | Yrd Mat Mat Mat Gar Total Allies . | . . . . . Largest Group . | . . . . . Highest-Rated Group . | . . . . . Highest-Rated Ally . | . . . . . Total Orders . | . . . . . Ally Attacks . | . . . . . Total Damage . | . . . . . Kills . | . . . . . Allies Corrupted . | . . . . . Allies Melted . | . . . . . Intel | -11 -10 -9 -8 -8 ------- Run | Yrd Mat Mat Mat Gar Active Infowar (turns) 185 | . . . 185 . Machine Analysis 185 | . . . 185 . Robot Analysis Total . | . . . . . Derelict Logs Recovered . | . . . . . Drone Launches . | . . . . . Drone Recoveries . | . . . . . Exploration | -11 -10 -9 -8 -8 ------------- Run | Yrd Mat Mat Mat Gar Turns Passed 1673 | 69 461 358 649 136 Spaces Moved 1377 | 71 354 223 541 188 Core 175 | 6 . 47 122 . Treads . | . . . . . Legs 299 | . 123 176 . . Wheels 296 | 65 231 . . . Hover 228 | . . . 228 . Flight 379 | . . . 191 188 Fastest Speed 34 | 50 80 50 34 34 Average Speed 78 | 77 93 109 71 34 Slowest Speed 300 | 80 120 190 300 40 Overloaded Moves . | . . . . . Propulsion Burnouts . | . . . . . Robots Hopped . | . . . . . Potential Cave-ins . | . . . . . Cave-ins Triggered . | . . . . . Exploration Rate (%) 25 | 4 37 25 28 34 Regions Visited 4 Branch Regions . Pre-discovered Areas . | . . . . . Known Exits Taken 1 | . . . 1 . Unknown Exits Taken 3 | 1 1 1 . . Scrap Searched . | . . . . . Spaces Dug . | . . . . . Terrain Destroyed 28 | . . 22 6 . Melee . | . . . . . Projectile 6 | . . . 6 . AOE 22 | . . 22 . . Terrain Rammed . | . . . . . Walls Destroyed . | . . . . . Machines Disabled . | . . . . . Actions | -11 -10 -9 -8 -8 --------- Run | Yrd Mat Mat Mat Gar Total 1722 | 82 434 276 699 231 Wait 88 | . 32 2 34 20 Move 1370 | 70 353 222 540 185 Hop . | . . . . . Pick Up 24 | 6 5 1 9 3 Fast Attach 25 | 4 5 2 13 1 Attach 30 | 2 2 9 11 6 Detach 10 | . 1 1 8 . Swap 4 | . . 3 1 . Drop 12 | . 6 2 4 . Fire 126 | . 28 34 62 2 Melee 23 | . . . 9 14 Ram 10 | . 2 . 8 . Kick . | . . . . . Crush . | . . . . . Escape Stasis . | . . . . . Rewire . | . . . . . Trap . | . . . . . Miscellaneous . | . . . . . Route ------- -11/Scrapyard -10/Materials -9/Materials -8/Materials -8/Garrison (discovered 1 exit: [*Mat]) History --------- Turn | Location | Event 30 | -11/Scrapyard | Discovered new exit (range 15) 70 | -11/Scrapyard | Entered Materials 392 | -10/Materials | Discovered new exit (range 7) 531 | -10/Materials | Entered another Materials area 531 | -9/Materials | Evolved 2 slots: Propulsion x1, Utility x1 814 | -9/Materials | Core integrity fell below 50% 886 | -9/Materials | Discovered new exit (range 3) 889 | -9/Materials | Entered another Materials area 889 | -8/Materials | Evolved 2 slots: Power x1, Utility x1 891 | -8/Materials | Lost 11 parts (2p4n2u3w) 1110 | -8/Materials | Build established: Mutant 1323 | -8/Materials | Lost 4 parts (2n2u) 1452 | -8/Materials | Lost 4 parts (1u3w) 1461 | -8/Materials | Core integrity fell below 50% 1537 | -8/Materials | Identified exit to Garrison 1538 | -8/Materials | Entered Garrison 1544 | -8/Garrison | Triggered checkpoint 1554 | -8/Garrison | Triggered checkpoint 1568 | -8/Garrison | Triggered checkpoint 1587 | -8/Garrison | Discovered new exit (range 13) 1592 | -8/Garrison | Attempted to access garrison exit controls, blocked by remote lockdown 1632 | -8/Garrison | Core integrity fell below 20% 1674 | -8/Garrison | Destroyed by G-50 Soldier with Heavy Laser Last Messages --------------- 01599_ Destroyed Mni. Grenade Launcher. 01602_ Sneak attack on D-53 Grenadier. 01602_ Destroyed Shock Absorption System. 01604_ Sneak attack on D-53 Grenadier. 01607_ Flight Unit+ destroyed. 01607_ Sneak attack on D-53 Grenadier. 01610_ Flight Unit+ destroyed. 01610_ Sneak attack on D-53 Grenadier. 01610_ D-53 Grenadier destroyed. 01615_ Acquired 40 matter. 01615_ Acquired Cmb. Airjet. 01617_ Acquired Launcher Guidance Computer. 01635_ Flight Unit+ destroyed. 01641_ Rnf. Ion Engine+ destroyed. 01642_ X-57 Shotgunner destroyed. 01647_ Flight Unit+ destroyed. 01650_ G-47 Trooper destroyed. 01653_ Acquired 18 matter. 01654_ Acquired Hpw. Shotgun. 01667_ G-50 Soldier Carbon-fiber Leg severed. Map ----- +----------------------------------------------------+ | ??????????????????????????????????????????" | | ?????????????????????????????????????#????# | | ???????????????????????????????#######+#### | | ??????????????????????????????? | | ????????????????????????????????# | | ????????????????????????????????# #??????# | | ????????????????????????????????# #??????## | | ????????????????????????????????# #???????# | | ????????????????????????????????# #???????# | | ????????????????????????????????# #???????# | | ????????????????????????????????# #???????# | | ????????????????????????????????# #???????# | | ???????????????????############## ######### | | ???????????????????# | | ???????????????????# | | ???????????????????# ##### ##### ########## | | ???????????????????# #?### #???# #????????? | | ???????????????????# #?#! #???# #????????? | | ??????????????????## #?#!! #???# #????????? | | ??????????????????# #?#####???# #????????? | | ??????????????????# #?????????# ????????? | | ??????????????????#! #?????????###????????? | | ??????????????????# g#????????????????????? | | ??????????????????## =#????????????????????? | | ?????????????????###gg#????????????????????? | | ?????????????????# @[%#????????????????????? | | ?????????????????# < #????????????????????? | | ?????????????????# #????????????????????? | | ?????????????????######????????????????????? | | ???????????????????????????????????????????? | | ???????????????????????????????????????????? | | ???????????????????????????????????????????? | | ???????????????????????????????????????????? | | ???????????????????????????????????????????? | | ???????????????????????????????????????????? | | ???????????????????????????????????????????? | | ???????????????????????????????????????????? | | ???????????????????????????????????????????? | | ???????????????????????????????????????????? | | ???????????????????????????????????????????? | | ???????????????????????????????????????????? | | ???????????????????????????????????????????? | | ???????????????????????????????????????????? | | ???????????????????????????????????????????? | | ???????????????????????????????????????????? | | ???????????????????????????????????????????? | | ???????????????????????????????????????????? | | ???????????????????????????????????????????? | | ???????????????????????????????????????????? | | | +----------------------------------------------------+ Best States ------------- Heat Dissipation 41 Energy Generation 17 Energy Capacity 415 Matter Stores 500 Matter Capacity 500 Sight Range 16 Terrain Scan Density 10 Armor Coverage 150 Evasion (%) 63 Launcher Accuracy 20 Item Schematics ----------------- None Robot Schematics ------------------ None Fabricated ------------ Nothing Repaired ---------- Nothing Studied --------- Axe | -8/Materials | Hacked Flight Unit | -8/Materials | Hacked Rnf. Ion Engine | -8/Materials | Hacked Alien Tech Used ----------------- None Achievements -------------- None Challenges ------------ None Game ------ Seed MultireflexArmorBeam Manual? 0 Play Time 00:20:29 Cumulative 15.1 hours Start 2025.11.07 @ 15:16:43 End 2025.11.07 @ 15:35:32 Sessions 1 Manual Loads 0 Difficulty Rogue Special Mode None Game No. 29 Rogue 27 Adventurer 2 Explorer 0 Win Type - Total 0 Types 0/0/0/0/0/0/0/0/0/0 Lore% 8 Gallery% 22 Achievement% 12 Wizard Run 0 Options --------- Layout 1 ASCII 0 Keyboard 0 Movement Arrows Keybinds 0 Fullscreen 1 Font 32/SmallcapsGlow Map View 50x35 Zoom Use 0% Tactical HUD 1 Map Filters NONE Filters NONE Steam 1 RUN: 82fe1ff4-4c4a-4f83-a3c4-f90bf111961c